[Event "7th Sharjah Masters 2024"]
[Site "Sharjah"]
[Date "2024.05.18"]
[Round "5.42"]
[White "Sivuk, Vitaly"]
[Black "Klimkowski, Jan"]
[Result "1-0"]
[ECO "E00"]
[WhiteElo "2544"]
[BlackElo "2518"]
[Annotator "RC"]
[PlyCount "146"]
[EventDate "2024.05.13"]
[EventType "swiss"]
[EventCountry "UAE"]
[SourceTitle "playchess.com"]
[Source "ChessBase"]
[SourceQuality "1"]
[TimeControl "5400+30"]

1. d4 {[%emt 1:31:00]} Nf6 {[%emt 1:31:00]} 2. c4 {[%emt 0:00:30]} e6 {[%emt 0:00:30]} 3. Bg5 {[%emt 0:00:30]} h6 {[%emt 0:00:30]} 4. Bh4 {[%emt 0:00:30]} Bb4+ {[%emt 0:00:30]} 5. Nd2 {[%emt 0:00:30]} O-O {[%emt 0:00:30]} 6. Ngf3 {[%emt 0:00:30]} d5 {[%emt 0:00:30]} 7. Rc1 {[%emt 0:00:30]} Nbd7 {[%emt 0:00:30]} 8. e3 {[%emt 0:00:30]} c5 {[%emt 0:00:30]} 9. a3 {[%emt 0:00:30]} Bxd2+ {[%emt 0:00:30]} 10. Qxd2 {[%emt 0:00:30]} cxd4 {[%emt 0:00:30]} 11. Qxd4 {[%emt 0:00:30]} Qa5+ {[%emt 0:00:30]} 12. Qd2 {[%emt 0:00:30]} Qb6 {[%emt 0:00:30]} 13. b4 {[%emt 0:00:30]} dxc4 {[%emt 0:00:30]} 14. Bxc4 {[%emt 0:00:30]} a5 {[%emt 0:00:30]} 15. O-O {[%emt 0:00:30]} axb4 {[%emt 0:00:30]} 16. axb4 {[%emt 0:00:30]} Ne4 {[%emt 0:00:30]} 17. Qc2 {[%emt 0:00:30]} Ndf6 {[%emt 0:00:30]} 18. b5 {[%emt 0:00:30]} Bd7 {[%emt 0:00:30]} 19. Ne5 {[%emt 0:00:30]} Qd6 {[%emt 0:00:30]} 20. Nxd7 {[%emt 0:00:30]} Qxd7 21. Rfd1 {[%emt 0:00:30]} Qc7 {[%emt 0:01:00]} 22. f3 {[%emt 0:00:30]} Ng5 {[%emt 0:00:30]} 23. Bg3 {[%emt 0:00:30]} Qb6 {[%emt 0:00:30]} 24. Qf2 {[%emt 0:00:30]} Rfc8 {[%emt 0:00:30]} 25. e4 {[%emt 0:00:30]} Qa5 {[%emt 0:00:30]} 26. Qb2 {[%emt 0:00:30]} Ngh7 {[%emt 0:00:30]} 27. Bf2 {[%emt 0:00:30]} Nf8 {[%emt 0:00:30]} 28. b6 {[%emt 0:00:30]} N6d7 {[%emt 0:00:30]} 29. Bf1 {[%emt 0:00:30]} Rxc1 {[%emt 0:00:30]} 30. Rxc1 {[%emt 0:00:30]} Rd8 {[%emt 0:00:30]} 31. Rc7 {[%emt 0:00:30]} Qa8 {[%emt 0:00:30]} 32. Bd4 {[%emt 0:00:30]} e5 {[%emt 0:00:30]} 33. Bxe5 {[%emt 0:00:30]} Ne6 {[%emt 0:00:30]} 34. Bg3 {[%emt 0:00:30]} Nxc7 {[%emt 0:00:30]} 35. bxc7 {[%emt 0:00:30]} Rc8 {[%emt 0:00:30]} 36. Qb5 {[%emt 0:00:30]} Nf8 {[%emt 0:00:30]} 37. h4 {[%emt 0:00:30]} Qa7+ {[%emt 0:00:30]} 38. Kh2 {[%emt 0:00:30]} b6 {[%emt 0:00:30]} 39. Bc4 {[%emt 0:00:30]} Rxc7 {[%emt 0:00:30]} 40. Bxc7 {[%emt 0:00:30]} Qxc7+ {[%emt 0:00:30]} 41. g3 {[%emt 0:00:30]} Nd7 {[%emt 0:00:30]} 42. f4 {[%emt 0:00:30]} Kf8 {[%emt 0:00:30]} 43. e5 {[%emt 0:00:30]} Nc5 {[%emt 0:00:30]} 44. Qb1 {[%emt 0:00:30]} Ne6 {[%emt 0:00:30]} 45. Qe4 {[%emt 0:00:30]} Qc5 {[%emt 0:00:30]} 46. f5 {[%emt 0:00:30]} Qd4 {[%emt 0:00:30]} 47. Qa8+ {[%emt 0:00:30]} Qd8 {[%emt 0:00:30]} 48. Qb7 {[%emt 0:00:30]} Qc7 {[%emt 0:00:30]} 49. Qd5 {[%emt 0:00:30]} Nd8 {[%emt 0:00:30]} 50. Kh3 {[%emt 0:00:30]} Ke7 {[%emt 0:00:30]} 51. Bb5 {[%emt 0:00:30]} Kf8 {[%emt 0:00:30]} 52. Kg4 {[%emt 0:00:30]} Qe7 {[%emt 0:00:30]} 53. Kh5 {[%emt 0:00:30]} g6+ {[%emt 0:00:30]} 54. fxg6 {[%emt 0:00:30]} Kg7 {[%emt 0:00:30]} 55. gxf7 {[%emt 0:00:30]} Nxf7 {[%emt 0:00:30]} 56. e6 {[%emt 0:00:30]} Qf6 {[%emt 0:00:30]} 57. Bd3 {[%emt 0:00:30]} Ne5 {[%emt 0:00:30]} 58. Be4 {[%emt 0:00:30]} b5 {[%emt 0:00:30]} 59. Qb7+ {[%emt 0:00:30]} Kf8 {[%emt 0:00:30]} 60. Qh7 {[%emt 0:00:30]} Qxe6 {[%emt 0:00:30]} 61. Qh8+ {[%emt 0:00:30]} Ke7 {[%emt 0:00:30]} 62. Qg7+ {[%emt 0:00:30]} Ke8 {[%emt 0:00:30]} 63. Bc2 {[%emt 0:00:30]} Kd8 {[%emt 0:00:30]} 64. Qf8+ {[%emt 0:00:30]} Kc7 {[%emt 0:00:30]} 65. Bf5 {[%emt 0:00:30]} Qd5 {[%emt 0:00:30]} 66. Qc8+ {[%emt 0:00:30]} Kb6 {[%emt 0:00:30]} 67. Qe6+ {[%emt 0:00:30]} Kc5 {[%emt 0:00:30]} 68. Qxd5+ {[%emt 0:00:30]} Kxd5 {[%emt 0:00:30]} 69. Kxh6 {[%emt 0:00:30]} b4 {[%emt 0:00:30]} 70. Kg7 {[%emt 0:00:30]} b3 {[%emt 0:00:30]} 71. h5 {[%emt 0:00:30]} Kd4 {[%emt 0:00:30]} 72. h6 {[%emt 0:00:30]} Nd3 {[%emt 0:00:30]} 73. Bxd3 {[%emt 0:00:30]} Kd5 {[%emt 0:00:30]} 1-0

[Event "7th Sharjah Masters 2024"]
[Site "Sharjah"]
[Date "2024.05.18"]
[Round "5.43"]
[White "Avila Pavas, Santiago"]
[Black "Suleymenov, Alisher"]
[Result "1-0"]
[ECO "B90"]
[WhiteElo "2516"]
[BlackElo "2501"]
[Annotator "TA"]
[PlyCount "91"]
[EventDate "2024.05.13"]
[EventType "swiss"]
[EventCountry "UAE"]
[SourceTitle "playchess.com"]
[Source "ChessBase"]
[SourceQuality "1"]
[TimeControl "5400+30"]

{[%evp 18,91,32,32,44,10,8,8,25,22,37,51,49,38,52,55,52,64,54,60,75,70,72,40,35,31,18,25,61,60,152,139,162,159,165,178,211,203,343,339,375,370,360,250,501,495,498,506,622,656,657,638,623,666,686,659,691,641,722,710,744,735,828,725,813,817,817,817,1160,1160,1145,1131,1079,1077,964,964]} 1. e4 {[%emt 1:31:00]} c5 {[%emt 1:31:00]} 2. Nf3 {[%emt 0:00:30]} d6 {[%emt 0:00:30]} 3. d4 {[%emt 0:00:30]} cxd4 {[%emt 0:00:30]} 4. Nxd4 {[%emt 0:00:30]} Nf6 {[%emt 0:00:30]} 5. Nc3 {[%emt 0:00:30]} a6 {[%emt 0:00:30]} 6. Be3 {[%emt 0:00:30]} e5 {[%emt 0:00:30]} 7. Nb3 {[%emt 0:00:30]} Be7 {[%emt 0:00:30]} 8. f3 {[%emt 0:00:30]} Be6 {[%emt 0:00:30]} 9. Qd2 {[%emt 0:00:30]} h5 {[%emt 0:00:30]} 10. Be2 {[%emt 0:00:30]} Nbd7 {[%emt 0:00:30]} 11. a4 {[%emt 0:00:30]} Qc7 {[%emt 0:00:30]} 12. O-O {[%emt 0:00:30]} O-O {[%emt 0:00:30] The position is equal.} 13. Rfc1 {[%emt 0:00:30]} Nc5 {[%emt 0:00:30]} 14. Nxc5 {[%emt 0:00:30]} dxc5 {[%emt 0:00:30]} 15. a5 {[%emt 0:00:30]} h4 {[%emt 0:00:30]} 16. Na4 {[%emt 0:00:30][%cal Bc3a4,Ba4b6,Bb6c4][%mdl 32]} Rad8 {[%emt 0:00:30]} 17. Qc3 {[%emt 0:00:30][%cal Ra4c5]} Rd4 {[%emt 0:00:30][%cal Oc7c6]} 18. Qe1 {[%emt 0:00:30]} Nh5 {[%emt 0:00:30]} 19. Nb6 {[%emt 0:00:30]} Nf4 {[%emt 0:00:30][%cal Oh4h3]} 20. Bxf4 {[%emt 0:00:30]} exf4 {[%emt 0:00:30]} 21. c3 {[%emt 0:00:30]} Rd6 {[%emt 0:00:30]} 22. Bc4 {[%emt 0:00:30]} Bxc4 {[%emt 0:00:30]} 23. Nxc4 {[%emt 0:00:30]} Rg6 {[%emt 0:00:30] [#] White leaves nothing to chance now.} ({Black should play} 23... Rd7 $14) 24. h3 $1 $16 {[%emt 0:00:30]} Qc8 {[%emt 0:00:30]} 25. Kh2 {[%emt 0:00:30]} Qe6 {[%emt 0:00:30]} 26. Qe2 {[%emt 0:00:30]} Rg3 {[%emt 0:00:30]} 27. Rd1 {[%emt 0:00:30]} g5 {[%emt 0:00:30]} (27... Rg5 $142 28. Rd2 Rc8) 28. Rd5 $18 {[%emt 0:00:30]} Qh6 {[%emt 0:00:30]} 29. Ne5 {[%emt 0:00:30]} Qe6 {[%emt 0:00:30]} 30. Qc4 {[%emt 0:00:30]} b5 $2 {[%emt 0:00:30] [#]} (30... Rb8 31. Qd3 Rc8) 31. axb6 {[%emt 0:00:30] White is clearly winning.} Qxb6 {[%emt 0:00:30][%cal Og3g2] Black is weak on the light squares} 32. Rd2 {[%emt 0:00:30]} (32. Rxa6 Qxb2 33. Qf1 Qxc3 $16) 32... Qb5 {[%emt 0:00:30]} 33. Qxb5 {[%emt 0:00:30]} axb5 {[%emt 0:00:30][%cal Ba6b5,Bb5b4][%mdl 32]} 34. Ra7 {[%emt 0:00:30]} Re8 {[%emt 0:00:30]} 35. Rdd7 {[%emt 0:00:30]} Bf8 {[%emt 0:00:30]} 36. Ng4 {[%emt 0:00:30]} Rxg4 {[%emt 0:00:30]} 37. hxg4 {[%emt 0:00:30][%mdl 4096] Endgame. KRR-KRB} (37. fxg4 Rxe4 38. Rxf7 Re2 $18) 37... f6 {[%emt 0:00:30]} 38. Kg1 {[%emt 0:00:30]} b4 {[%emt 0:00:30]} 39. c4 {[%emt 0:00:30]} Kh8 {[%emt 0:00:30]} 40. Kf2 {[%emt 0:00:30]} Rb8 {[%emt 0:00:30]} 41. Ke2 {[%emt 0:00:30]} Re8 {[%emt 0:00:30]} 42. Rf7 {[%emt 0:00:30]} Rd8 {[%emt 0:00:30]} 43. b3 {[%emt 0:00:30]} Bd6 {[%emt 0:00:30]} 44. Rxf6 {[%emt 0:00:30]} Be5 {[%emt 0:00:30]} 45. Rf5 {[%emt 0:00:30]} Bc3 {[%emt 0:00:30]} 46. Rd5 {[%emt 0:00:30] Weighted Error Value: White=0.09 (flawless) /Black=0.43.  Mistake:       	---       	Black=3      Inaccurate:     	White=3     	Black=1      OK:         	White=14    	Black=3      Best:        	White=1     	---        Strong:       	White=1     	---} ({And not} 46. Rxc5 h3 (46... Rd2+ 47. Kf1 $11) 47. gxh3 Rd2+ 48. Kf1 Rd1+ 49. Kg2 Rd2+ 50. Kh1 Rd1+ 51. Kg2 Rd2+ 52. Kh1 Rd1+ 53. Kg2 $11) 1-0